fUSD/lending_fUSD_20250806
["ID","MTS","AMOUNT","RATE_DAILY","PERIOD"]
[377677910,1754489432139,-647.04132406,0.000321,2]
[377677911,1754489432150,-42.95867594,0.000321,2]
[377677912,1754489432160,-150.0,0.0003274,2]
[377677913,1754489432169,-790.25,0.00032783,2]
[377677914,1754489432178,-68.08951065,0.00033055,2]
[377677915,1754489432190,-23831.91048935,0.00033055,2]
[377677916,1754489432199,-666.0,0.00033097,3]
[377677917,1754489432209,-175.0,0.00033114,7]
[377677918,1754489432219,-185.04,0.00033126,2]
[377677919,1754489432228,-411.23,0.00033274,2]
[377677920,1754489432239,-676.0,0.0003328,2]
[377677921,1754489432252,-218.85,0.00033345,30]
[377677922,1754489432262,-1000.0,0.00033353,2]
[377677923,1754489432273,-273.82,0.00033388,2]
[377677924,1754489432284,-154.06,0.00033544,2]
[377677926,1754489432294,-152.71,0.00033697,2]
[377677928,1754489432304,-154.06,0.00033712,2]
[377677930,1754489432315,-151.0,0.00033716,10]
[377677933,1754489432325,-231.0,0.00033716,10]
[377677936,1754489432334,-422.1152736,0.00033718,2]
[377677939,1754489432343,-457.43778519,0.00033739,2]
[377677942,1754489432353,-250.0,0.00033774,2]
[377677946,1754489432362,-150.0,0.00033825,2]
[377677949,1754489432372,-300.0,0.00033842,2]
[377677952,1754489432382,-2568.69,0.00033844,2]
[377677955,1754489432392,-7542.84,0.00033844,2]
[377677958,1754489432401,-150.99,0.00033844,2]
[377677961,1754489432411,-20563.137,0.00033869,2]
[377677963,1754489432420,-907.309,0.00033869,2]
[377677965,1754489432430,-1171.577,0.00033869,2]
[377677967,1754489432440,-6073.0,0.00033869,2]
[377677969,1754489432449,-154.06,0.0003388,2]
[377677970,1754489432458,-164.88243334,0.0003428,38]
[377677971,1754489432467,-202.2,0.00034345,2]
[377677972,1754489432477,-197.3225451,0.000344,15]
[377677973,1754489432486,-158.92596458,0.000344,2]
[377677974,1754489432496,-662.0,0.0003447,2]
[377677975,1754489432505,-400.0,0.0003447,7]
[377677976,1754489432515,-1000.0,0.000345,8]
[377677977,1754489432525,-1000.0,0.000345,8]
[377677978,1754489432537,-1000.0,0.000345,8]
[377677979,1754489432547,-1242.0,0.000345,6]
[377677980,1754489432556,-1000.0,0.000345,6]
[377677981,1754489432567,-1000.0,0.000345,6]
[377677982,1754489432577,-411.23,0.00034522,2]
[377677983,1754489432586,-172.78898219,0.00034526,2]
[377677984,1754489432595,-589.73917972,0.00034526,34]
[377677985,1754489432605,-2320.64950468,0.00034526,2]
[377677986,1754489432614,-151.0,0.00034591,7]
[377677987,1754489432624,-151.0,0.00034591,7]
[377677988,1754489432634,-151.0,0.00034591,7]
[377677989,1754489432644,-270.242487,0.00034591,2]
[377677990,1754489432653,-151.0,0.00034591,7]
[377677991,1754489432663,-151.0,0.00034591,7]
[377677992,1754489432673,-298.45121136,0.00034591,7]
[377677993,1754489432682,-500.0,0.00034614,7]
[377677994,1754489432692,-500.0,0.00034614,7]
[377677995,1754489432701,-500.0,0.00034614,7]
[377677996,1754489432710,-500.0,0.00034614,7]
[377677997,1754489432719,-500.0,0.00034614,7]
[377677998,1754489432729,-500.0,0.00034614,7]
[377677999,1754489432739,-500.0,0.00034614,7]
[377678000,1754489432749,-500.0,0.00034614,7]
[377678001,1754489432759,-500.0,0.00034614,7]
[377678002,1754489432769,-500.0,0.00034614,7]
[377678003,1754489432781,-500.0,0.00034614,7]
[377678004,1754489432792,-500.0,0.00034614,7]
[377678005,1754489432802,-500.0,0.00034614,7]
[377678006,1754489432813,-500.0,0.00034614,7]
[377678007,1754489432822,-500.0,0.00034614,7]
[377678008,1754489432832,-500.0,0.00034614,7]
[377678009,1754489432843,-500.0,0.00034614,7]
[377678010,1754489432853,-156.02371896,0.00034614,7]
[377678011,1754489432863,-500.0,0.00034614,7]
[377678012,1754489432872,-500.0,0.00034614,7]
[377678013,1754489432882,-500.0,0.00034614,7]
[377678014,1754489432891,-500.0,0.00034614,7]
[377678015,1754489432901,-350.0,0.00034614,7]
[377678016,1754489432911,-217.17734268,0.00034614,2]
[377678017,1754489432920,-500.0,0.00034614,7]
[377678018,1754489432930,-500.0,0.00034614,7]
[377678019,1754489432939,-500.0,0.00034614,7]
[377678020,1754489432950,-500.0,0.00034614,7]
[377678021,1754489432960,-250.0,0.00034614,7]
[377678022,1754489432970,-500.0,0.00034614,7]
[377678023,1754489432980,-153.897648,0.00034614,7]
[377678024,1754489432989,-42593.2672919,0.00034615,3]
[377678025,1754489432999,-317.53,0.00034615,3]
[377678026,1754489433009,-174.545723,0.00034615,7]
[377678027,1754489433018,-4483.5018202,0.00034615,3]
[377678028,1754489433030,-2241.7509101,0.00034616,3]
[377678029,1754489433040,-29142.7618313,0.00034617,3]
[377678030,1754489433050,-400.0,0.00034624,2]
[377678031,1754489433060,-400.0,0.00034624,2]
[377678032,1754489433070,-400.0,0.00034624,2]
[377678033,1754489433079,-261.27653012,0.00034624,2]
[377678034,1754489433089,-151.0,0.00034627,7]
[377678035,1754489433099,-151.0,0.00034627,7]
[377678036,1754489433109,-151.0,0.00034627,7]
[377678037,1754489433124,-153.0,0.00034627,5]
[377678038,1754489433134,-457.43778519,0.00034628,3]
[377678039,1754489433144,-211.52696026,0.00034628,3]
[377678040,1754489433153,-151.0,0.00034628,7]
[377678041,1754489433163,-500.0,0.00034637,15]
[377678042,1754489433173,-500.0,0.00034637,15]
[377678043,1754489433182,-500.0,0.00034637,15]
[377678044,1754489433191,-500.0,0.00034637,30]
[377678045,1754489433201,-500.0,0.00034637,30]
[377678046,1754489433210,-500.0,0.00034637,30]
[377678047,1754489433221,-151.0,0.00034638,7]
[377678048,1754489433231,-151.0,0.00034638,7]
[377678049,1754489433245,-151.0,0.00034638,7]
[377678050,1754489433255,-151.0,0.00034638,7]
[377678051,1754489433265,-157.626515,0.00034638,7]
[377678052,1754489433275,-151.0,0.00034638,7]
[377678053,1754489433287,-151.0,0.00034638,7]
[377678054,1754489433296,-151.0,0.0003465,7]
[377678055,1754489433307,-188.523,0.0003465,7]
[377678056,1754489433317,-500.0,0.00034673,5]
[377678057,1754489433326,-501.11420916,0.00034673,5]
[377678058,1754489433337,-500.0,0.00034673,5]
[377678059,1754489433348,-571.14850233,0.00034673,5]
[377678060,1754489433358,-279.92638069,0.00034673,5]
[377678061,1754489433368,-500.0,0.00034673,5]
[377678062,1754489433378,-500.0,0.00034673,5]
[377678063,1754489433388,-500.0,0.00034673,5]
[377678064,1754489433398,-500.0,0.00034673,5]
[377678065,1754489433408,-502.51485239,0.00034673,5]
[377678066,1754489433419,-500.0,0.00034673,5]
[377678067,1754489433435,-502.26391945,0.00034673,5]
[377678068,1754489433445,-500.0,0.00034673,5]
[377678069,1754489433456,-557.51948251,0.00034673,5]
[377678070,1754489433466,-500.0,0.00034673,5]
[377678071,1754489433476,-500.0,0.00034673,5]
[377678072,1754489433486,-500.0,0.00034673,5]
[377678073,1754489433496,-500.0,0.00034673,5]
[377678074,1754489433506,-507.01370989,0.00034673,5]
[377678075,1754489433516,-500.0,0.00034673,5]
[377678076,1754489433527,-500.0,0.00034673,5]
[377678077,1754489433537,-167.13,0.00034691,2]
[377678078,1754489433549,-200.0,0.00034796,2]
[377678079,1754489433560,-2000.0,0.000348,2]
[377678080,1754489433571,-600.0,0.000348,12]
[377678081,1754489433581,-152.0,0.00034887,3]
[377678082,1754489433591,-1200.0,0.000349,12]
[377678083,1754489433601,-301.25,0.00035,2]
[377678084,1754489433611,-158.92596458,0.00035001,2]
[377678085,1754489433621,-2320.64950461,0.00035046,2]
[377678086,1754489433631,-211.52696026,0.00035138,2]
[377678087,1754489433641,-151.0,0.00035144,7]
[377678088,1754489433652,-151.0,0.00035144,7]
[377678089,1754489433662,-151.0,0.00035144,7]
[377678090,1754489433673,-239.83877471,0.0003522,7]
[377678091,1754489433683,-338.74516239,0.0003522,7]
[377678092,1754489433694,-500.0,0.0003522,7]
[377678093,1754489433704,-400.28255931,0.0003522,7]
[377678094,1754489433714,-500.0,0.0003522,7]
[377678095,1754489433724,-500.0,0.00035221,5]
[377678096,1754489433734,-500.0,0.00035221,5]
[377678097,1754489433744,-510.38099593,0.00035221,5]
[377678098,1754489433754,-500.0,0.00035221,5]
[377678099,1754489433765,-500.0,0.00035221,5]
[377678100,1754489433775,-1000.0,0.00035221,5]
[377678101,1754489433787,-500.0,0.00035221,5]
[377678102,1754489433796,-1000.0,0.00035221,5]
[377678103,1754489433806,-741.85102451,0.00035221,5]
[377678104,1754489433817,-500.0,0.00035221,5]
[377678105,1754489433827,-500.98406874,0.00035221,5]
[377678106,1754489433837,-151.0,0.00035309,7]
[377678107,1754489433847,-151.0,0.00035309,7]
[377678108,1754489433857,-577.42482694,0.00035309,4]
[377678109,1754489433867,-1000.0,0.00035309,4]
[377678110,1754489433877,-1037.0,0.00035309,4]
[377678111,1754489433886,-1075.369,0.00035309,4]
[377678112,1754489433896,-1115.157653,0.00035309,4]
[377678113,1754489433906,-1156.41848616,0.00035309,4]
[377678114,1754489433916,-1199.20597015,0.00035309,4]
[377678115,1754489433926,-1243.57659104,0.00035309,4]
[377678116,1754489433935,-500.0,0.00035309,4]
[377678117,1754489433945,-1289.58892491,0.00035309,4]
[377678118,1754489433955,-1337.30371513,0.00035309,4]
[377678119,1754489433964,-445.03163963,0.00035309,4]
[377678120,1754489433974,-1386.78395259,0.00035309,4]
[377678121,1754489433983,-1438.09495884,0.00035309,4]
[377678122,1754489433993,-1491.30447232,0.00035309,4]
[377678123,1754489434003,-1546.48273779,0.00035309,4]
[377678124,1754489434012,-1603.70259909,0.00035309,4]
[377678125,1754489434022,-1663.03959526,0.00035309,4]
[377678126,1754489434034,-1724.57206028,0.00035309,4]
[377678127,1754489434044,-1788.38122651,0.00035309,4]
[377678128,1754489434054,-1854.55133189,0.00035309,4]
[377678129,1754489434064,-1923.16973117,0.00035309,4]
[377678130,1754489434074,-1994.32701123,0.00035309,4]
[377678131,1754489434084,-250.0,0.00035309,4]
[377678132,1754489434094,-250.0,0.00035309,4]
[377678133,1754489434104,-250.0,0.00035309,4]
[377678134,1754489434114,-250.0,0.00035309,4]
[377678135,1754489434124,-264.68458933,0.00035309,4]
[377678136,1754489434134,-370.08078031,0.00035309,4]
[377678137,1754489434144,-185.04,0.00035334,2]
[377678138,1754489434154,-150.0,0.00035359,4]
[377678139,1754489434164,-150.0,0.00035359,4]
[377678140,1754489434174,-150.0,0.00035359,4]
[377678141,1754489434185,-150.0,0.00035359,4]
[377678142,1754489434195,-198.69057949,0.00035359,4]
[377678143,1754489434204,-150.0,0.00035359,4]
[377678144,1754489434214,-150.0,0.00035359,4]
[377678145,1754489434224,-152.71,0.00035524,2]
[377678146,1754489434233,-2320.64950461,0.00035566,2]
[377678147,1754489434245,-158.92596458,0.00035601,2]
[377678148,1754489434255,-319.53,0.0003561,2]
[377678149,1754489434266,-317.19,0.0003561,2]
[377678150,1754489434275,-584.33,0.00035616,30]
[377678151,1754489434288,-648.0,0.0003565,2]
[377678152,1754489434298,-220.56,0.0003572,2]
[377678153,1754489434308,-411.23,0.0003577,2]
[377678154,1754489434319,-150.0,0.00035787,2]
[377678155,1754489434329,-150.0,0.00035787,2]
[377678156,1754489434338,-150.0,0.00035787,2]
[377678157,1754489434347,-150.0,0.00035787,2]
[377678158,1754489434357,-150.0,0.00035787,2]
[377678159,1754489434367,-513.0,0.00035787,2]
[377678160,1754489434376,-225.419,0.00035787,2]
[377678161,1754489434385,-151.0,0.00035787,7]
[377678162,1754489434395,-250.0,0.00036,120]
[377678163,1754489434405,-500.0,0.00036,5]
[377678164,1754489434420,-2320.64950461,0.00036085,2]
[377678165,1754489434429,-455.51393805,0.00036153,5]
[377678166,1754489434440,-152.500477,0.00036196,7]
[377678167,1754489434451,-151.0,0.00036196,7]
[377678168,1754489434461,-242.916088,0.00036196,7]
[377678169,1754489434472,-151.0,0.00036196,7]
[377678170,1754489434481,-1134.02,0.000362,2]
[377678171,1754489434492,-158.92596458,0.00036202,2]
[377678172,1754489434502,-150.0,0.00036205,120]
[377678173,1754489434512,-500.0,0.00036205,30]
[377678174,1754489434522,-500.0,0.00036205,30]
[377678175,1754489434533,-500.0,0.00036205,30]
[377678176,1754489434543,-500.0,0.00036205,30]
[377678177,1754489434554,-500.0,0.00036205,30]
[377678178,1754489434564,-500.0,0.00036205,30]
[377678179,1754489434575,-500.0,0.00036205,30]
[377678180,1754489434586,-500.0,0.00036205,30]
[377678181,1754489434596,-500.0,0.00036205,30]
[377678182,1754489434606,-500.0,0.00036205,30]
[377678183,1754489434617,-500.0,0.00036205,30]
[377678184,1754489434627,-500.0,0.00036205,30]
[377678185,1754489434639,-500.0,0.00036205,30]
[377678186,1754489434649,-520.59,0.00036205,30]
[377678187,1754489434659,-152.011952,0.00036215,7]
[377678188,1754489434670,-152.058908,0.00036215,7]
[377678189,1754489434680,-500.0,0.00036215,30]
[377678190,1754489434691,-500.0,0.00036215,30]
[377678191,1754489434701,-532.12898051,0.00036216,2]
[377678192,1754489434711,-151.0,0.00036237,7]
[377678193,1754489434721,-2639.27,0.000363,14]
[377678194,1754489434731,-18668.94271777,0.00036332,2]
[377678195,1754489434741,-252.696894,0.00036332,7]
[377678196,1754489434751,-150.0,0.00036341,7]
[377678197,1754489434762,-500.0,0.00036547,6]
[377678198,1754489434773,-2320.64950461,0.00036605,2]
[377678199,1754489434786,-151.0,0.0003662,6]
[377678200,1754489434796,-551.05,0.00036624,2]
[377678201,1754489434805,-150.0,0.00036668,7]
[377678202,1754489434815,-150.0,0.00036785,2]
[377678203,1754489434825,-197.32254509,0.00036802,15]
[377678204,1754489434834,-158.92596458,0.00036802,2]
[377678205,1754489434844,-635.0,0.0003683,2]
[377678206,1754489434854,-172.78898219,0.00036865,2]
[377678207,1754489434864,-770.899,0.00036869,2]
[377678208,1754489434873,-150.0,0.00036952,2]
[377678209,1754489434884,-2374.46729713,0.0003699,2]
[377678210,1754489434894,-1000.0,0.00037,120]
[377678211,1754489434903,-1000.0,0.00037,120]
[377678212,1754489434913,-781.42284872,0.00037,120]
[377678213,1754489434922,-411.23,0.00037018,2]
[377678214,1754489434932,-220.56,0.0003709,2]
[377678215,1754489434941,-500.0,0.00037095,7]
[377678216,1754489434951,-2320.64950461,0.00037125,2]
[377678217,1754489434961,-174.17,0.00037213,2]
[377678218,1754489434971,-500.0,0.00037259,7]
[377678219,1754489434980,-600.0,0.00037259,7]
[377678220,1754489434990,-500.0,0.00037259,7]
[377678221,1754489434999,-273.0,0.00037319,30]
[377678222,1754489435009,-150.0,0.00037323,7]
[377678223,1754489435019,-150.0,0.00037349,2]
[377678224,1754489435030,-152.71,0.0003735,2]
[377678225,1754489435039,-224.18644077,0.0003739,14]
[377678226,1754489435049,-280.0,0.000374,30]
[377678227,1754489435058,-158.92596458,0.00037403,2]
[377678228,1754489435068,-2000.0,0.000375,2]
[377678229,1754489435079,-1000.0,0.00037522,2]
[377678230,1754489435088,-185.04,0.00037542,2]
[377678231,1754489435098,-1860.61,0.00037616,2]
[377678232,1754489435108,-174.17,0.00037628,2]
[377678233,1754489435118,-348.33,0.00037642,2]
[377678234,1754489435128,-500.0,0.00037643,8]
[377678235,1754489435138,-2320.64950461,0.00037645,2]
[377678236,1754489435148,-200.0,0.00037666,10]
[377678237,1754489435158,-2639.27,0.000377,14]
[377678238,1754489435467,-551.05,0.00037725,2]
[377678239,1754489435478,-150.0,0.00037729,2]
[377678240,1754489435488,-150.0,0.00037749,2]
[377678241,1754489435499,-209.0,0.0003777,30]
[377678242,1754489435508,-150.0,0.0003779,2]
[377678243,1754489435518,-150.0,0.00037826,2]
[377678244,1754489435529,-151.0,0.00037836,7]
[377678245,1754489435539,-150.0,0.0003786,2]
[377678246,1754489435549,-2843.11,0.00037873,2]
[377678247,1754489435559,-197.74393278,0.0003788,2]
[377678248,1754489435569,-150.0,0.00037978,7]
[377678249,1754489435579,-151.09,0.00037989,2]
[377678250,1754489435589,-225.89335753,0.00037989,2]
[377678251,1754489435600,-150.8166148,0.00037994,2]
[377678252,1754489435616,-2610.2072342,0.00037994,2]
[377678253,1754489435627,-1000.0,0.00037997,2]
[377678254,1754489435637,-500.0,0.00037997,30]
[377678255,1754489435648,-150.0,0.00037999,22]
[377678256,1754489435658,-500.0,0.00037999,22]
[377678257,1754489435668,-500.0,0.00037999,22]
[377678258,1754489435678,-500.0,0.00037999,22]
[377678259,1754489435687,-500.0,0.00037999,22]
[377678260,1754489435697,-500.0,0.00037999,22]
[377678261,1754489435707,-500.0,0.00037999,2]
[377678262,1754489435717,-500.0,0.00037999,120]
[377678263,1754489435726,-500.0,0.00037999,22]
[377678264,1754489435736,-150.0,0.00037999,22]
[377678265,1754489435745,-150.0,0.00037999,22]
[377678266,1754489435755,-500.0,0.00037999,22]
[377678267,1754489435765,-150.0,0.00037999,22]
[377678268,1754489435775,-150.0,0.00037999,22]
[377678269,1754489435788,-500.0,0.00037999,22]
[377678270,1754489435798,-150.0,0.00037999,22]
[377678271,1754489435808,-500.0,0.00037999,22]
[377678272,1754489435818,-150.0,0.00037999,22]
[377678273,1754489435827,-500.0,0.00037999,22]
[377678274,1754489435837,-150.0,0.00037999,22]
[377678275,1754489435847,-289.72256867,0.00037999,22]
[377678276,1754489435857,-500.0,0.00037999,22]
[377678277,1754489435867,-500.0,0.00037999,22]
[377678278,1754489435876,-500.0,0.00037999,22]
[377678279,1754489435885,-150.0,0.00037999,22]
[377678280,1754489435895,-150.0,0.00037999,7]
[377678281,1754489435905,-150.0,0.00037999,2]
[377678282,1754489435915,-500.0,0.00037999,22]
[377678283,1754489435926,-500.0,0.00037999,22]
[377678284,1754489435936,-150.0,0.00037999,2]
[377678285,1754489435945,-500.0,0.00037999,22]
[377678286,1754489435955,-308.91831583,0.00038,9]
[377678287,1754489435965,-1000.0,0.00038,9]
[377678288,1754489435975,-150.0,0.00038002,2]
[377678289,1754489435985,-411.4223037,0.00038008,2]
[377678290,1754489435994,-1937.1522651,0.00038008,2]
[377678291,1754489436005,-44202.3344663,0.00038008,2]
[377678292,1754489436014,-1018.5419941,0.00038008,2]
[377678293,1754489436024,-29609.4751937,0.00038008,2]
[377678294,1754489436035,-10720.678596,0.00038008,2]
[377678295,1754489436045,-13833.5949478,0.00038011,2]
[377678296,1754489436055,-500.0,0.00038017,30]
[377678297,1754489436064,-500.0,0.00038017,30]
[377678298,1754489436075,-621.0,0.0003802,2]
[377678299,1754489436084,-14146.8368785,0.00038047,2]
[377678300,1754489436094,-589.7096785,0.00038047,2]
[377678301,1754489436103,-3411.0209021,0.00038047,2]
[377678302,1754489436113,-500.0,0.00038073,5]
[377678303,1754489436123,-160.89527581,0.00038073,5]
[377678304,1754489436133,-498.3952,0.00038073,5]
[377678305,1754489436143,-150.0,0.00038077,2]
[377678306,1754489436153,-600.0,0.00038081,7]
[377678307,1754489436163,-500.0,0.00038081,7]
[377678308,1754489436173,-150.0,0.00038149,2]
[377678309,1754489436183,-2320.64950461,0.00038164,2]
[377678310,1754489436192,-150.0,0.0003818,2]
[377678311,1754489436202,-500.0,0.00038191,9]
[377678312,1754489436212,-150.0,0.0003822,2]
[377678313,1754489436222,-411.23,0.00038266,2]
[377678314,1754489436233,-206.41133938,0.00038272,15]
[377678315,1754489436245,-205.77713063,0.00038273,22]
[377678316,1754489436256,-500.0,0.00038273,22]
[377678317,1754489436266,-620.4473648,0.00038273,22]
[377678318,1754489436276,-500.0,0.00038273,22]
[377678319,1754489436288,-500.0,0.00038273,22]
[377678320,1754489436298,-500.0,0.00038273,22]
[377678321,1754489436309,-500.0,0.00038273,2]
[377678322,1754489436318,-500.0,0.00038273,120]
[377678323,1754489436327,-500.0,0.00038273,22]
[377678324,1754489436337,-150.0,0.00038273,22]
[377678325,1754489436347,-500.0,0.00038273,22]
[377678326,1754489436357,-150.0,0.00038273,22]
[377678327,1754489436366,-500.0,0.00038273,22]
[377678328,1754489436375,-150.0,0.00038273,22]
[377678329,1754489436384,-500.0,0.00038273,22]
[377678330,1754489436393,-204.1649712,0.00038273,22]
[377678331,1754489436403,-622.11451582,0.00038273,22]
[377678332,1754489436412,-150.0,0.00038273,22]
[377678333,1754489436422,-500.0,0.00038273,22]
[377678334,1754489436432,-500.0,0.00038273,22]
[377678335,1754489436442,-500.0,0.00038273,22]
[377678336,1754489436452,-150.0,0.00038273,22]
[377678337,1754489436461,-500.0,0.00038273,22]
[377678338,1754489436471,-500.0,0.00038273,22]
[377678339,1754489436481,-500.0,0.00038273,22]
[377678340,1754489436491,-150.0,0.00038276,2]
[377678341,1754489436501,-2905.73723188,0.00038304,10]
[377678342,1754489436511,-150.0,0.00038305,7]
[377678343,1754489436521,-150.0,0.00038314,2]
[377678344,1754489436532,-150.0,0.00038356,12]
[377678345,1754489436542,-151.0,0.00038383,7]
[377678346,1754489436563,-151.0,0.00038383,7]
[377678347,1754489436573,-151.0,0.00038383,7]
[377678348,1754489436583,-151.0,0.00038383,7]
[377678349,1754489436593,-151.0,0.00038383,7]
[377678350,1754489436603,-151.0,0.00038383,7]
[377678351,1754489436613,-151.0,0.00038383,7]
[377678352,1754489436623,-151.0,0.00038383,7]
[377678353,1754489436633,-151.0,0.00038383,7]
[377678354,1754489436643,-91.23863243,0.00038383,7]
[377678355,1754489436690,-59.76136757,0.00038383,7]
[377678356,1754489436700,-151.0,0.00038383,7]
[377678357,1754489436710,-130.93065243,0.00038383,7]
[377678358,1754489436746,-20.06934757,0.00038383,7]
[377678359,1754489436756,-151.0,0.00038383,7]
[377678360,1754489436766,-151.0,0.00038383,7]
[377678361,1754489436776,-1.06003646,0.00038383,7]
[377678362,1754489436791,-149.93996354,0.00038383,7]
[377678363,1754489436801,-151.0,0.00038383,7]
[377678364,1754489436811,-151.0,0.00038383,7]
[377678365,1754489436821,-183.22003646,0.00038383,7]
[377678366,1754489436856,-37.69614176,0.00038383,7]
[377678367,1754489436866,-150.0,0.00038411,2]
[377678368,1754489436876,-150.0,0.00038421,2]
[377678369,1754489436886,-220.56,0.0003846,2]
[377678370,1754489436897,-467.24,0.0003847,2]
[377678371,1754489436907,-183.19656589,0.000385,2]
[377678468,1754489441860,-888.0,0.00028718,3]
[377678469,1754489441870,-3581.37539607,0.000344,2]
[377678470,1754489441881,-10832.41371429,0.000344,2]
[377678471,1754489441891,-3489.86155955,0.000344,2]
[377678472,1754489442097,-500.0,0.000344,2]
[377678473,1754489442108,-108583.41599968,0.000344,2]
[377678518,1754489443433,-471.18792609,0.00030958,3]
[377678520,1754489443446,-727.01299595,0.00030958,3]
[377678523,1754489443458,-577.79907796,0.00030958,3]
[377678525,1754489443469,-212.73572204,0.000344,2]
[377678540,1754489443612,-732948.3067093,0.000344,2]
[377678542,1754489443624,-888.0,0.00035117,3]
[377678544,1754489443635,-888.0,0.00035809,3]
[377678547,1754489443646,-153.0,0.00036237,5]
[377678549,1754489443657,-1776.0,0.00037357,3]
[377678551,1754489443668,-350.0,0.00037961,22]
[377678553,1754489443679,-888.0,0.00038,3]
[377678555,1754489443690,-158.92596458,0.00038003,2]
[377678557,1754489443700,-1776.0,0.00038049,3]
[377678560,1754489443712,-1368.45248912,0.000385,2]
[377678562,1754489443723,-775.0,0.000385,2]
[377678564,1754489443735,-1900.0,0.000385,14]
[377678566,1754489443746,-240.0,0.000385,2]
[377678568,1754489443757,-379.0,0.000385,2]
[377678570,1754489443770,-301.25,0.000385,2]
[377678573,1754489443782,-1000.0,0.00038535,2]
[377678575,1754489443795,-1000.0,0.00038535,2]
[377678577,1754489443807,-1000.0,0.00038535,2]
[377678579,1754489443819,-173.34490943,0.00038547,22]
[377678581,1754489443831,-374.37526121,0.00038547,22]
[377678584,1754489443843,-441.74312721,0.00038547,22]
[377678586,1754489443854,-360.78498265,0.00038547,22]
[377678588,1754489443867,-500.0,0.00038547,2]
[377678590,1754489443879,-500.0,0.00038547,120]
[377678592,1754489443889,-500.0,0.00038547,22]
[377678594,1754489443901,-150.0,0.00038547,22]
[377678597,1754489443912,-306.42455606,0.00038547,22]
[377678599,1754489443923,-225.9541382,0.00038547,22]
[377678601,1754489443933,-316.16275662,0.00038547,22]
[377678603,1754489443943,-250.48726877,0.00038547,22]
[377678605,1754489443953,-500.0,0.00038547,22]
[377678607,1754489443965,-150.0,0.00038547,22]
[377678608,1754489443976,-500.0,0.00038547,22]
[377678609,1754489443987,-500.0,0.00038547,22]
[377678610,1754489443998,-500.0,0.00038547,22]
[377678611,1754489444010,-150.0,0.00038547,22]
[377678612,1754489444022,-500.0,0.00038547,22]
[377678613,1754489444034,-500.0,0.00038547,22]
[377678614,1754489444047,-500.0,0.00038547,22]
[377678615,1754489444059,-888.0,0.00038547,3]
[377678616,1754489444070,-170.37868331,0.00038561,2]
[377678617,1754489444081,-150.0,0.00038586,2]
[377678618,1754489444092,-2500.0,0.000386,14]
[377678619,1754489444103,-158.92596458,0.00038604,2]
[377678620,1754489444115,-150.0,0.00038605,2]
[377678621,1754489444126,-209.0,0.0003861,30]
[377678622,1754489444137,-150.0,0.00038612,2]
[377678623,1754489444150,-150.0,0.00038622,2]
[377678624,1754489444161,-2320.64950461,0.00038684,2]
[377678625,1754489444172,-1000.0,0.00038686,2]
[377678626,1754489444183,-150.0,0.00038697,2]
[377678627,1754489444194,-2639.27,0.000387,14]
[377678628,1754489444206,-3200.0,0.000387,14]
[377678629,1754489444217,-150.0,0.00038716,30]
[377678630,1754489444228,-304.96500698,0.00038716,30]
[377678631,1754489444239,-183.94274128,0.00038716,30]